[Event "SixDays Budapest March GM-A 2023"]
[Site "Budapest"]
[Date "2023.03.28"]
[Round "8.4"]
[White "Leszko, Bence"]
[Black "Bodi, Tibor"]
[Result "0-1"]
[ECO "A87"]
[WhiteElo "2283"]
[BlackElo "2356"]
[Annotator "TA"]
[PlyCount "158"]
[EventDate "2023.03.24"]
[EventType "tourn"]
[EventCountry "HUN"]
[SourceTitle "playchess.com"]
[Source "ChessBase"]
[SourceQuality "1"]
[TimeControl "5400+30"]

{[%evp 16,158,23,10,23,14,31,39,44,31,60,0,0,0,0,0,-4,-49,-45,-99,-87,-106,-113,-146,-95,-394,-366,-328,-153,-140,-102,-147,-162,-160,-87,-111,-112,-122,-114,-128,-122,-157,-154,-167,-172,-189,-170,-199,-200,-277,-266,-250,-136,-135,-144,-152,-136,-346,-340,-328,-195,-370,-298,-570,-570,-570,-570,-570,-660,-599,-570,-542,-522,-560,-512,-493,-389,-591,-549,-766,-758,-674,-612,-672,-570,-29964,-29966,-29965,-29967,-29969,-29968,-29970,-29970,-29971,-29972,-29971,-29972,-29976,-29971,-29971,-29972,-29972,-29973,-29973,-29974,-29974,-29975,-29975,-29972,-29973,-29973,-29973,-29972,-29974,-29973,-29973,-29974,-29974,-29975,-29975,-29976,-29976,-29975,-29975,-29976,-29975,-29976,-29979,-29980,-29981,-29978,-29978,-29979,-29980,-29980,-29981,-29979,-29985,-29985,-29990,-29991,-29992,-29972,-29979,-29980]} 1. Nf3 {[%emt 0:00:45]} f5 {[%emt 0:01:42]} 2. d4 {[%emt 0:03:02]} Nf6 {[%emt 0:00:48]} 3. c4 {[%emt 0:00:09]} g6 {[%emt 0:00:06]} 4. g3 {[%emt 0:00:06]} Bg7 {[%emt 0:00:04]} 5. Bg2 {[%emt 0:00:05]} O-O {[%emt 0:00:03]} 6. O-O {[%emt 0:00:55]} d6 {[%emt 0:00:03]} 7. Nc3 {[%emt 0:00:24]} Qe8 {[%emt 0:00:06]} 8. d5 {[%emt 0:00:20]} Na6 $1 {[%emt 0:01:02] 8...Na6 scores better than 8...a5.} 9. Qc2 {[%emt 0:02:16]} Bd7 {[%emt 0:00:23] A87: Dutch Defence: Leningrad System: 5 Nf3.} 10. e4 {[%emt 0:07:14] [#]} e5 $146 {[%emt 0:07:43]} ({Predecessor:} 10... fxe4 11. Ng5 c6 12. dxc6 bxc6 13. Ngxe4 Rb8 14. Be3 Nb4 15. Qd2 c5 16. Rae1 Nxe4 17. Bxe4 {1-0 Guerrero,A (2112)-Fernandez Rodriguez,A (1832) Montevideo Duchamp Cup 1st 2017 (5)}) 11. dxe6 {[%emt 0:04:50]} Bxe6 {[%emt 0:00:48] White is slightly better.} 12. Re1 {[%emt 0:12:47]} Nb4 {[%emt 0:02:54]} 13. Qd2 {[%emt 0:01:22]} (13. Qe2 $1 $14) 13... Qd7 $1 $11 {[%emt 0:11:52]} 14. Nd5 {[%emt 0:34:25] Nxf6+ is the strong threat.} fxe4 {[%emt 0:01:46]} 15. Qxb4 {[%emt 0:00:21]} exf3 {[%emt 0:01:33]} 16. Bxf3 {[%emt 0:00:32][%cal Od5c7]} Nxd5 {[%emt 0:00:56]} 17. cxd5 {[%emt 0:01:20]} (17. Bxd5 $15 Bxd5 18. cxd5) 17... Bh3 $17 {[%emt 0:00:36]} 18. Bh1 {[%emt 0:00:19] [#]} a5 $1 {[%emt 0:02:23]} 19. Qh4 {[%emt 0:01:44]} Rae8 {[%emt 0:01:01]} (19... Qf5 $142 {[%csl Gf8][%cal Rf5f2]} 20. Bf4 Bf6) 20. Be3 {[%emt 0:05:15][%mdl 8192]} (20. Rxe8 $17 Rxe8 21. Be3) 20... Bxb2 $19 {[%emt 0:01:38]} 21. Rab1 {[%emt 0:00:06] [#]} Bf6 {[%emt 0:00:21]} (21... Bc3 $1 $19 {[%cal Rc3e1]} 22. Red1 Qf5) 22. Qc4 $17 {[%emt 0:00:21]} b6 {[%emt 0:01:08]} 23. Rbc1 {[%emt 0:01:59]} Qf5 {[%emt 0:04:06]} 24. Qc2 {[%emt 0:01:44] Repels Bb2} Bd8 {[%emt 0:02:27] Black is more active.} (24... Re7 $142 25. Qxf5 Bxf5) 25. Qxf5 {[%emt 0:00:50]} Rxf5 {[%emt 0:00:54]} 26. Bf4 {[%emt 0:03:10]} Rxe1+ {[%emt 0:04:21]} 27. Rxe1 {[%emt 0:00:01]} g5 {[%emt 0:00:40][%cal Bg6g5,Bg5g4,Bg4h3][%mdl 32]} 28. Be3 {[%emt 0:01:34]} Re5 {[%emt 0:00:38]} 29. Rc1 {[%emt 0:01:57]} Bf5 {[%emt 0:01:46]} 30. Rc4 {[%emt 0:02:01]} g4 {[%emt 0:01:12]} 31. Bg2 {[%emt 0:00:44]} h5 {[%emt 0:00:27]} 32. h4 {[%emt 0:00:35]} gxh3 {[%emt 0:01:13]} 33. Bf3 {[%emt 0:00:00]} Bg6 {[%emt 0:01:39]} (33... b5 $19 34. Rc6 Bg4) 34. Kh2 {[%emt 0:00:37]} Bb1 {[%emt 0:06:04]} 35. a3 {[%emt 0:00:11]} b5 {[%emt 0:06:33]} 36. Rd4 {[%emt 0:00:24]} (36. Rc6 $17 {was called for.}) 36... Bf6 $19 {[%emt 0:00:39][%cal Oe5e3] White must now prevent ...Rxe3!} 37. Rd2 {[%emt 0:04:47]} Be4 {[%emt 0:00:49]} (37... b4 $142 38. axb4 axb4) 38. Bxe4 $2 {[%emt 0:01:03]} (38. Be2 {was the only chance.}) 38... Rxe4 {[%emt 0:00:02][%mdl 4096] Endgame KRB-KRB} 39. Rc2 $2 {[%emt 0:01:28]} (39. Rd3) 39... b4 {[%emt 0:03:36]} 40. axb4 {[%emt 0:00:13]} axb4 41. Rxc7 {[%emt 0:01:48]} b3 {[%emt 0:00:20]} 42. Bc1 {[%emt 0:01:45]} b2 {[%emt 0:00:48]} 43. Bxb2 {[%emt 0:00:05]} Bxb2 {[%emt 0:00:02] KRB-KR} 44. Rd7 {[%emt 0:00:37]} Ba3 {[%emt 0:00:17] Hoping for ...Re2.} 45. Kxh3 {[%emt 0:00:20]} Rd4 {[%emt 0:00:19]} 46. f4 {[%emt 0:00:30]} (46. Re7 {keeps fighting.}) 46... Rxd5 {[%emt 0:00:10]} 47. g4 {[%emt 0:00:04]} hxg4+ {[%emt 0:00:11]} 48. Kxg4 {[%emt 0:00:06]} Kf8 {[%emt 0:00:30]} 49. f5 {[%emt 0:00:07]} Re5 {[%emt 0:00:57] ( -> ...Re7)} 50. Kg5 {[%emt 0:00:14]} Re7 {[%emt 0:00:17] Against Rh7. Black mates.} 51. Rd8+ {[%emt 0:00:21]} Kf7 {[%emt 0:00:06]} 52. Kg4 {[%emt 0:00:49]} Re4+ {[%emt 0:00:27]} 53. Kg5 {[%emt 0:00:30]} Bc1+ {[%emt 0:00:31]} 54. Kh5 {[%emt 0:00:02]} Rd4 {[%emt 0:00:37]} 55. Rc8 {[%emt 0:00:19]} Bd2 {[%emt 0:00:19]} 56. Rd8 {[%emt 0:00:27]} Bf4 {[%emt 0:00:49]} 57. Kg4 {[%emt 0:00:48]} Be5+ {[%emt 0:00:06]} 58. Kf3 {[%emt 0:00:36]} Rf4+ {[%emt 0:00:06]} 59. Ke3 {[%emt 0:00:04]} Rxf5 {[%emt 0:00:04]} 60. Ke4 {[%emt 0:00:07]} Rf4+ {[%emt 0:00:07]} 61. Kd5 {[%emt 0:00:31]} Rd4+ {[%emt 0:00:05]} 62. Kc6 {[%emt 0:00:02]} Rc4+ {[%emt 0:00:07]} 63. Kd5 {[%emt 0:00:07]} Rc5+ {[%emt 0:00:06]} 64. Ke4 {[%emt 0:00:05]} Ke7 {[%emt 0:00:11]} 65. Ra8 {[%emt 0:00:09]} Bf6 {[%emt 0:00:06]} 66. Rb8 {[%emt 0:00:26]} Ke6 {[%emt 0:00:10]} 67. Re8+ {[%emt 0:00:05]} Be7 {[%emt 0:00:03]} 68. Kd4 {[%emt 0:00:10]} Rf5 {[%emt 0:00:11]} 69. Ra8 {[%emt 0:00:12]} Rf4+ {[%emt 0:00:06]} 70. Ke3 {[%emt 0:00:10]} Rh4 {[%emt 0:00:04]} 71. Re8 {[%emt 0:00:10]} d5 {[%emt 0:00:11]} 72. Kd3 {[%emt 0:00:06]} Kd6 {[%emt 0:00:06]} 73. Ra8 {[%emt 0:00:08]} Rh3+ {[%emt 0:00:13]} 74. Ke2 {[%emt 0:00:06]} Bf6 {[%emt 0:00:11]} 75. Rf8 {[%emt 0:00:08]} Ke5 {[%emt 0:00:04]} 76. Ra8 {[%emt 0:00:11]} Ke4 {[%emt 0:00:07]} 77. Kd1 {[%emt 0:00:23]} Kd3 {[%emt 0:00:35][%cal Rh3h1]} 78. Ke1 {[%emt 0:00:16]} Rh1+ {[%emt 0:00:07]} 79. Kf2 {[%emt 0:00:04]} Bc3 {[%emt 0:00:08] Weighted Error Value: White=0.61/Black=0.23 (precise)} 0-1

[Event "SixDays Budapest March GM-A 2023"]
[Site "Budapest"]
[Date "2023.03.28"]
[Round "8.5"]
[White "Berczes, David"]
[Black "Pfreundt, Jakob"]
[Result "1/2-1/2"]
[ECO "D02"]
[WhiteElo "2427"]
[BlackElo "2407"]
[Annotator "TA"]
[PlyCount "19"]
[EventDate "2023.03.24"]
[EventType "tourn"]
[EventCountry "HUN"]
[SourceTitle "playchess.com"]
[Source "ChessBase"]
[SourceQuality "1"]
[TimeControl "5400+30"]

{[%evp 9,19,18,21,22,22,-5,16,15,10,14,12,12]} 1. Nf3 {[%emt 0:20:38]} d5 {[%emt 0:01:25]} 2. d4 {[%emt 0:02:24]} Nf6 {[%emt 0:00:08]} 3. Bf4 {[%emt 0:03:04]} e6 {[%emt 0:00:34]} 4. e3 {[%emt 0:00:13]} Bd6 {[%emt 0:00:09]} 5. Bxd6 cxd6 {[%emt 0:00:15] The position is equal.} 6. c4 {[%emt 0:03:03] D02: 1 d4 d5 2 Nf3 sidelines, including 2...Nf6 3 g3 and 2...Nf6 3 Bf4.} Bd7 {[%emt 0:00:45]} 7. Nbd2 {[%emt 0:04:18]} dxc4 {[%emt 0:05:08]} 8. Bxc4 {[%emt 0:00:42]} Bc6 {[%emt 0:00:31]} 9. O-O {[%emt 0:00:59]} O-O {[%emt 0:00:13] [#]} 10. b4 $146 {[%emt 0:11:24] An uneventful encounter.   Weighted Error Value: White=0.07 (flawless) /Black=0.05 (flawless)} ({Predecessor:} 10. a3 a5 11. b4 b5 12. Bd3 axb4 13. axb4 Rxa1 14. Qxa1 Qb6 15. Rc1 Nd5 16. Qb1 {½-½ Goehler,A (2097)-Richter,U (1852) BL2 Ost 1617 (Women) 2016 (3.3)}) 1/2-1/2

[Event "SixDays Budapest March GM-A 2023"]
[Site "Budapest"]
[Date "2023.03.29"]
[Round "9.1"]
[White "Pfreundt, Jakob"]
[Black "Rosh Jain"]
[Result "1-0"]
[ECO "A18"]
[WhiteElo "2407"]
[BlackElo "2325"]
[Annotator "TA"]
[PlyCount "91"]
[EventDate "2023.03.24"]
[EventType "tourn"]
[EventCountry "HUN"]
[SourceTitle "playchess.com"]
[Source "ChessBase"]
[SourceQuality "1"]
[TimeControl "5400+30"]

{[%evp 9,91,44,43,24,33,28,28,38,64,64,73,54,66,41,90,93,141,138,146,125,136,132,128,120,135,108,343,337,338,331,336,300,314,331,305,289,268,259,265,278,469,301,271,270,372,352,392,363,381,397,397,391,402,390,402,402,690,378,1685,1675,1414,1464,1464,1112,638,593,29967,29959,29967,1244,29956,12831,12832,6054,5465,5397,5397,5297,5297,1794,5222,1605,29999,-5297]} 1. c4 {[%emt 0:00:51]} Nf6 {[%emt 0:00:41]} 2. Nc3 {[%emt 0:01:02]} e6 {[%emt 0:00:17]} 3. e4 {[%emt 0:00:52][%cal Be2e4,Be4e5][%mdl 32]} d5 {[%emt 0:05:22]} 4. e5 {[%emt 0:00:21]} Ne4 {[%emt 0:02:29]} 5. Nf3 {[%emt 0:00:22]} c5 {[%emt 0:03:55]} 6. Qc2 {[%emt 0:06:56] A18: English Opening: Flohr-Mikenas System (1 c4 Nf6 2 Nc3 e6 3 e4).} Nxc3 {[%emt 0:00:42]} 7. dxc3 {[%emt 0:00:19]} Nc6 {[%emt 0:09:52]} 8. Bf4 {[%emt 0:01:37] White has an edge.} dxc4 9. Bxc4 {[%emt 0:00:43]} Be7 {[%emt 0:03:19] [#]} 10. h4 $146 {[%emt 0:01:38] White is more active.} ({Predecessor:} 10. Bd3 h6 11. O-O-O Qa5 12. Kb1 b5 13. h4 Rb8 14. Rh3 b4 15. Bd2 Qc7 16. Rg3 {1-0 Labussiere,V (2087)-Silva,K (1910) Caioba Telecom op 2018 (5)}) 10... h6 {[%emt 0:01:10]} 11. Rh3 {[%emt 0:05:46]} Qb6 {[%emt 0:03:57]} (11... Qc7 $14 {deserves consideration.}) 12. Rg3 $16 {[%emt 0:08:48]} g5 {[%emt 0:04:40]} 13. hxg5 {[%emt 0:18:53]} hxg5 {[%emt 0:00:10]} 14. Bxg5 {[%emt 0:00:18]} Rh1+ {[%emt 0:00:43]} 15. Bf1 {[%emt 0:00:08]} Bd7 {[%emt 0:14:03]} 16. O-O-O {[%emt 0:22:53]} O-O-O {[%emt 0:01:55]} 17. Nd2 {[%emt 0:05:40][%cal Bf3d2,Bd2c4,Bc4d6][%mdl 32] Black must now prevent Nc4.} Rg8 $2 {[%emt 0:10:05] Black cannot hold the game after this.} (17... Qa5 $16 {is a better defense.}) 18. Nc4 $18 {[%emt 0:04:08]} Qc7 {[%emt 0:02:11]} 19. Bxe7 {[%emt 0:00:23]} Nxe7 {[%emt 0:00:32]} 20. Rxg8+ {[%emt 0:01:55]} Nxg8 {[%emt 0:00:05]} 21. Nd6+ {[%emt 0:02:20]} Kb8 {[%emt 0:00:05]} 22. Be2 {[%emt 0:01:37]} ({Don't take} 22. Nxf7 Ne7 23. Bc4 Rxd1+ 24. Qxd1 b5) 22... Rxd1+ {[%emt 0:00:22]} 23. Bxd1 {[%emt 0:01:29] Qh7 is the strong threat.} f5 {[%emt 0:02:35]} 24. Bf3 {[%emt 0:05:05]} Bc6 $2 {[%emt 0:00:59]} (24... b6 {was worth a try.} 25. g4 fxg4) 25. Bxc6 {[%emt 0:04:10]} Qxc6 {[%emt 0:00:08][%mdl 4096] Endgame KQN-KQN} 26. Qb3 {[%emt 0:00:31]} Qd7 {[%emt 0:01:30]} 27. Nxf5 {[%emt 0:01:51]} Ne7 {[%emt 0:03:18]} 28. Nxe7 {[%emt 0:00:56]} Qxe7 {[%emt 0:00:04] KQ-KQ} 29. Qd1 {[%emt 0:00:14] [#] Strongly threatening Qd6+.} Kc8 {[%emt 0:00:54]} 30. f4 {[%emt 0:02:00] Prevents Qg5} Qh4 {[%emt 0:00:46]} 31. Qf3 {[%emt 0:00:28]} Qh1+ {[%emt 0:01:12]} 32. Kc2 {[%emt 0:00:08] And now Qh3 would win.} c4 {[%emt 0:00:56]} (32... Kc7 $142 33. a3 c4) 33. f5 {[%emt 0:01:08] [#] f6 would be deadly.} exf5 $2 {[%emt 0:00:53]} (33... Qh7 34. g4 Qh2+ 35. Kd1 exf5 36. Qxf5+ Kd8 37. Qf8+ Kc7 38. Qe7+ Kc8 39. Qe8+ Kc7 40. Qf7+ Kd8 41. Qxb7 Qg1+ 42. Ke2 Qh2+ 43. Ke3 Qxe5+ 44. Qe4 Qb5 45. Qa8+ Ke7 46. Qxa7+ Ke6) 34. Qxf5+ {[%emt 0:00:04]} Kb8 {[%emt 0:00:09]} 35. Qf8+ {[%emt 0:00:18]} Kc7 {[%emt 0:00:07]} 36. Qe7+ {[%emt 0:01:44]} Kc8 {[%emt 0:00:10]} 37. Qe6+ {[%emt 0:00:06]} Kb8 {[%emt 0:00:07]} 38. Qg8+ {[%emt 0:00:04]} Kc7 {[%emt 0:00:08]} 39. Qxc4+ {[%emt 0:00:05]} Kb8 {[%emt 0:00:05]} 40. Qg8+ {[%emt 0:00:06]} Kc7 {[%emt 0:00:04]} 41. Qf7+ {[%emt 0:00:13]} Kb8 {[%emt 0:00:07]} 42. Qf8+ {[%emt 0:00:48]} Kc7 {[%emt 0:00:05]} 43. Qd6+ {[%emt 0:00:07]} Kc8 {[%emt 0:00:04]} 44. Qc5+ {[%emt 0:00:24]} Kb8 {[%emt 0:00:12]} 45. Qd5 {[%emt 0:00:27][%cal Rd5d8]} Qf1 {[%emt 0:00:24]} 46. Qc6 $4 {[%mdl 40960] Artfully played by Pfreundt.   Weighted Error Value: White=0.24 (precise) /Black=0.79. Loss on time!?} 1-0

[Event "SixDays Budapest March GM-A 2023"]
[Site "Budapest"]
[Date "2023.03.29"]
[Round "9.2"]
[White "Bodi, Tibor"]
[Black "Berczes, David"]
[Result "1/2-1/2"]
[ECO "A05"]
[WhiteElo "2356"]
[BlackElo "2427"]
[Annotator "TA"]
[PlyCount "35"]
[EventDate "2023.03.24"]
[EventType "tourn"]
[EventCountry "HUN"]
[SourceTitle "playchess.com"]
[Source "ChessBase"]
[SourceQuality "1"]
[TimeControl "5400+30"]

{[%evp 10,22,8,-8,8,-12,0,0,0,13,8,-7,-9,-15,6]} 1. Nf3 {[%emt 0:06:42]} Nf6 {[%emt 0:06:07]} 2. d4 {[%emt 0:00:06]} e6 {[%emt 0:00:06]} 3. Bf4 {[%emt 0:00:07]} d5 {[%emt 0:00:07]} 4. e3 {[%emt 0:00:04]} Bd6 {[%emt 0:00:07]} 5. Bg3 {[%emt 0:00:03]} O-O {[%emt 0:00:10]} 6. Nbd2 {[%emt 0:00:04] The position is equal.} c5 {[%emt 0:00:07] D02: 1 d4 d5 2 Nf3 sidelines, including 2...Nf6 3 g3 and 2...Nf6 3 Bf4.} 7. c3 {[%emt 0:00:03]} b6 {[%emt 0:00:48]} 8. Bd3 {[%emt 0:00:09]} Ba6 {[%emt 0:00:22]} 9. Bxa6 {[%emt 0:00:07]} Nxa6 {[%emt 0:00:04]} 10. O-O {[%emt 0:00:15]} Bxg3 {[%emt 0:00:24]} 11. hxg3 {[%emt 0:00:03]} Nc7 {[%emt 0:00:25] [#] An uneventful encounter.   Weighted Error Value: White=0.09 (flawless) /Black=0.07 (flawless)} {Predecessor:} 12. Ne5 $146 c4 13. f4 b5 14. g4 Ne4 15. a4 a6 16. g5 f6 17. gxf6 gxf6 18. Qg4+ {0-1 Avila Pavas,S (2373)-Sarkar,J (2356) Titled Tuesday intern op 15th June blitz 2021 (2)} 1/2-1/2

[Event "SixDays Budapest March GM-A 2023"]
[Site "Budapest"]
[Date "2023.03.29"]
[Round "9.3"]
[White "Sammed Jaykumar, Shete"]
[Black "Leszko, Bence"]
[Result "1-0"]
[ECO "D02"]
[WhiteElo "2454"]
[BlackElo "2283"]
[Annotator "TA"]
[PlyCount "89"]
[EventDate "2023.03.24"]
[EventType "tourn"]
[EventCountry "HUN"]
[SourceTitle "playchess.com"]
[Source "ChessBase"]
[SourceQuality "1"]
[TimeControl "5400+30"]

{[%evp 9,89,8,4,4,16,-4,-1,-7,-3,-2,-1,-22,-16,-22,-21,-36,57,-12,-16,-129,-30,-20,-24,-31,9,0,33,31,39,0,43,35,47,33,181,177,313,300,440,444,506,331,324,0,242,164,382,377,397,408,410,391,383,293,280,295,302,302,302,297,302,285,269,246,468,322,535,445,837,845,877,859,1117,1083,1252,1224,1379,1334,6545,6314,29984,29985]} 1. d4 {[%emt 0:00:31]} d5 {[%emt 0:07:38]} 2. Nf3 {[%emt 0:00:07]} Nf6 {[%emt 0:00:04]} 3. c3 {[%emt 0:00:26]} e6 {[%emt 0:00:48]} 4. Bf4 {[%emt 0:00:06]} Bd6 {[%emt 0:00:07]} 5. e3 {[%emt 0:00:03]} O-O {[%emt 0:00:37]} 6. Nbd2 {[%emt 0:00:13] D02: 1 d4 d5 2 Nf3 sidelines, including 2...Nf6 3 g3 and 2...Nf6 3 Bf4.} c5 {[%emt 0:01:05]} 7. Bg3 {[%emt 0:00:09]} Qc7 {[%emt 0:01:00]} 8. Ne5 {[%emt 0:05:34] The position is equal.} b6 {[%emt 0:09:35]} 9. Bd3 {[%emt 0:01:29]} Ba6 {[%emt 0:02:23]} 10. Bc2 {[%emt 0:00:18]} Nfd7 {[%emt 0:00:54]} 11. f4 {[%emt 0:13:04]} f5 {[%emt 0:02:06]} (11... Nc6 {is interesting.} 12. Kf2 f6 13. Qh5 f5) 12. Bh4 {[%emt 0:00:25] [#]} Nxe5 $146 {[%emt 0:00:16]} (12... Nf6 $15) ({Predecessor:} 12... Nc6 13. g4 Ndxe5 14. fxe5 Be7 15. Bf2 cxd4 16. exd4 Nxe5 17. gxf5 exf5 18. Bg3 f4 {1-0 Duda,J (2757)-Le,T (2501) Speed Chess Invitational blitz 2020 (1.9)}) 13. fxe5 {[%emt 0:02:16]} (13. dxe5 $14 Be7 14. Bxe7 Qxe7 15. Qf3) 13... Be7 $11 {[%emt 0:00:01]} 14. Qh5 {[%emt 0:00:14] [#]} (14. Bxe7 $11 {was the only way to keep the balance.} Qxe7 15. Qh5) 14... Nc6 {[%emt 0:18:25]} (14... g6 $1 $17 {[%cal Rg6h5]} 15. Qh6 Bxh4+ 16. Qxh4 f4) 15. Bxe7 {[%emt 0:00:22]} Qxe7 {[%emt 0:00:12]} 16. Nf3 {[%emt 0:00:18]} g6 {[%emt 0:03:06]} 17. Qh6 {[%emt 0:00:36]} Qg7 {[%emt 0:00:41]} (17... f4 $5 {[%cal Rf4e3]}) 18. Qf4 {[%emt 0:02:47]} Rac8 {[%emt 0:01:47]} 19. Rc1 {[%emt 0:01:28]} cxd4 {[%emt 0:09:51]} 20. exd4 {[%emt 0:00:17]} Na5 {[%emt 0:00:14]} 21. h4 {[%emt 0:00:57][%cal Bh2h4,Bh4h5][%mdl 32] Threatens to win with h5.} Nc4 {[%emt 0:08:26]} (21... h6 $1 $14) 22. Bd3 $18 {[%emt 0:04:20]} Bb7 {[%emt 0:00:37] [#]} (22... Bb5 $142 23. h5 Rce8) 23. b3 $1 {[%emt 0:01:45]} Na5 {[%emt 0:00:14]} (23... h6 {was necessary.} 24. bxc4 dxc4) 24. h5 {[%emt 0:00:08]} Rc7 {[%emt 0:01:35]} 25. Ng5 {[%emt 0:01:04]} Bc8 {[%emt 0:00:50]} 26. Nf3 $2 {[%emt 0:02:05]} (26. Rh3 $18) 26... Kh8 $2 {[%emt 0:03:28]} (26... Bb7 $1 $11) 27. Rh3 {[%emt 0:02:16] And now Ng5 would win.} gxh5 $2 {[%emt 0:11:22]} (27... g5 28. Nxg5 (28. Qxg5 Qxg5 29. Nxg5 Rg8 $11) 28... Rg8) 28. Rxh5 {[%emt 0:04:59]} Rg8 {[%emt 0:05:35]} (28... Qxg2 $2 29. Rc2 Qg4 30. Qxg4 fxg4 31. Ng5) 29. Ng5 {[%emt 0:00:46]} Qg6 {[%emt 0:00:02]} 30. g4 {[%emt 0:00:10]} Rcg7 {[%emt 0:00:25]} 31. Kd2 {[%emt 0:03:09] aiming for Rch1.} Qxh5 {[%emt 0:01:23]} 32. gxh5 {[%emt 0:00:04]} Rxg5 {[%emt 0:00:04]} 33. Be2 {[%emt 0:00:09][%cal Bd3e2,Be2f3,Bf3d5][%mdl 32]} h6 {[%emt 0:01:19]} 34. c4 {[%emt 0:01:12]} dxc4 {[%emt 0:01:00]} 35. bxc4 {[%emt 0:01:28]} ({Not} 35. Bxc4 Nxc4+ 36. Rxc4 (36. bxc4 Rg2+ 37. Ke1 Kh7 $19) 36... Bb7 $14) 35... Kh7 {[%emt 0:00:07]} 36. Bf3 {[%emt 0:01:26] Repels Rg2+} Bb7 $2 {[%emt 0:01:18]} (36... Ba6 37. d5 Rc8) 37. d5 {[%emt 0:01:51]} Rd8 $2 {[%emt 0:00:21]} (37... R8g7 {might work better.} 38. Rc3 Rc7 39. dxe6 Bxf3) 38. Ke3 {[%emt 0:01:04][%cal Bd2e3,Be3f2,Bf2g1][%mdl 32]} Bc8 {[%emt 0:00:26]} (38... Rdg8 $142 39. Kf2 R8g7 40. dxe6 Bxf3 41. Qxf3 Nb7) 39. dxe6 {[%emt 0:02:11]} Bxe6 {[%emt 0:00:06] [#]} 40. Bd5 $1 {[%emt 0:00:07][%mdl 512]} Re8 {[%emt 0:02:43]} (40... Rg4 41. Qf3) 41. Kf2 {[%emt 0:03:02] Rg1 would be deadly.} Rg4 {[%emt 0:02:41] Inhibits Rg1.} 42. Qf3 {[%emt 0:00:21] Intending Bxe6 and mate.} Rg5 {[%emt 0:00:41]} 43. Rg1 {[%emt 0:02:42] White threatens Rxg5 and mate.} Rxg1 {[%emt 0:03:25]} 44. Kxg1 {[%emt 0:00:10] White wants to mate with Bxe6.} Bxd5 {[%emt 0:00:11]} 45. Qxf5+ {[%emt 0:00:08] Weighted Error Value: White=0.33/Black=0.74} 1-0